fUST/lending_fUST_20250901
["ID","MTS","AMOUNT","RATE_DAILY","PERIOD"]
[382794007,1756733446360,-480.0,0.00013698,2]
[382794008,1756733446370,-481.49182011,0.00013698,2]
[382794009,1756733446379,-480.0,0.00013698,2]
[382794010,1756733446392,-480.0,0.00013698,2]
[382794011,1756733446401,-557.38,0.00013698,2]
[382794012,1756733446411,-628.55,0.00013698,2]
[382794013,1756733446420,-543.21,0.00013698,2]
[382794014,1756733446430,-480.0,0.00013698,2]
[382794015,1756733446439,-318.97572382,0.00013698,2]
[382794016,1756733446449,-480.0,0.00013698,2]
[382794017,1756733446458,-482.98320907,0.00013698,2]
[382794018,1756733446468,-480.0,0.00013698,2]
[382794019,1756733446478,-617.66,0.00013698,2]
[382794020,1756733446488,-480.0,0.00013698,2]
[382794021,1756733446498,-480.0,0.00013698,2]
[382794022,1756733446508,-480.0,0.00013698,2]
[382794023,1756733446518,-1150.21,0.00013698,2]
[382794024,1756733446527,-550.41954453,0.00013698,2]
[382794025,1756733446539,-480.0,0.00013698,2]
[382794026,1756733446549,-480.0,0.00013698,2]
[382794027,1756733446559,-480.0,0.00013698,2]
[382794028,1756733446569,-480.0,0.00013698,2]
[382794029,1756733446578,-480.0,0.00013698,2]
[382794030,1756733446588,-964.21,0.00013698,2]
[382794031,1756733446598,-480.0,0.00013698,2]
[382794032,1756733446609,-635.15,0.00013698,2]
[382794033,1756733446619,-480.0,0.00013698,2]
[382794034,1756733446628,-480.0,0.00013698,2]
[382794035,1756733446637,-481.25496652,0.00013698,2]
[382794036,1756733446647,-480.0,0.00013698,2]
[382794037,1756733446656,-480.0,0.00013698,2]
[382794038,1756733446666,-480.0,0.00013698,2]
[382794039,1756733446676,-480.0,0.00013698,2]
[382794040,1756733446685,-455.31106279,0.00013698,2]
[382794041,1756733446694,-480.0,0.00013698,2]
[382794042,1756733446704,-697.2,0.00013698,2]
[382794043,1756733446714,-480.0,0.00013698,2]
[382794044,1756733446723,-480.0,0.00013698,2]
[382794045,1756733446733,-480.0,0.00013698,2]
[382794046,1756733446742,-843.72,0.00013698,2]
[382794047,1756733446752,-748.58,0.00013698,2]
[382794048,1756733446761,-480.0,0.00013698,2]
[382794049,1756733446770,-480.0,0.00013698,2]
[382794050,1756733446781,-480.0,0.00013698,2]
[382794051,1756733446790,-480.0,0.00013698,2]
[382794052,1756733446800,-480.0,0.00013698,2]
[382794053,1756733446809,-480.0,0.00013698,2]
[382794054,1756733446820,-480.0,0.00013698,2]
[382794055,1756733446829,-723.85,0.00013698,2]
[382794056,1756733446839,-425.35819495,0.00013698,2]
[382794057,1756733446848,-151.0,0.00013698,2]
[382794058,1756733446858,-480.0,0.00013698,2]
[382794059,1756733446868,-151.0,0.00013698,2]
[382794060,1756733446878,-480.0,0.00013698,2]
[382794061,1756733446888,-151.0,0.00013698,2]
[382794062,1756733446897,-151.0,0.00013698,2]
[382794063,1756733446907,-151.0,0.00013698,2]
[382794064,1756733446917,-151.0,0.00013698,2]
[382794065,1756733446927,-480.0,0.00013698,2]
[382794066,1756733446936,-151.0,0.00013698,2]
[382794067,1756733446946,-151.0,0.00013698,2]
[382794068,1756733446955,-369.33630945,0.00013698,2]
[382794069,1756733446964,-741.74,0.00013698,2]
[382794070,1756733446974,-151.0,0.00013698,2]
[382794071,1756733446983,-151.0,0.00013698,2]
[382794072,1756733446993,-151.0,0.00013698,2]
[382794073,1756733447002,-151.0,0.00013698,2]
[382794074,1756733447012,-480.0,0.00013698,2]
[382794075,1756733447021,-151.0,0.00013698,2]
[382794076,1756733447031,-151.0,0.00013698,2]
[382794077,1756733447040,-175.002112,0.00013698,2]
[382794078,1756733447050,-480.0,0.00013698,2]
[382794079,1756733447060,-480.0,0.00013698,2]
[382794080,1756733447069,-480.0,0.00013698,2]
[382794081,1756733447080,-480.0,0.00013698,2]
[382794082,1756733447090,-480.0,0.00013698,2]
[382794083,1756733447099,-336.03,0.00013698,2]
[382794084,1756733447109,-480.0,0.00013698,2]
[382794085,1756733447119,-484.09405176,0.00013698,2]
[382794086,1756733447129,-480.0,0.00013698,2]
[382794087,1756733447138,-481.34972911,0.00013698,2]
[382794088,1756733447148,-480.0,0.00013698,2]
[382794089,1756733447157,-439.53512927,0.00013698,2]
[382794090,1756733447168,-480.0,0.00013698,2]
[382794091,1756733447177,-480.0,0.00013698,2]
[382794092,1756733447187,-1000.0,0.00013698,2]
[382794093,1756733447197,-480.0,0.00013698,2]
[382794094,1756733447207,-480.69208295,0.00013698,2]
[382794095,1756733447217,-480.35556803,0.00013698,2]
[382794096,1756733447226,-480.0,0.00013698,2]
[382794097,1756733447235,-766.3,0.00013698,2]
[382794098,1756733447246,-480.0,0.00013698,2]
[382794099,1756733447256,-480.0,0.00013698,2]
[382794100,1756733447271,-480.0,0.00013698,2]
[382794101,1756733447281,-480.0,0.00013698,2]
[382794102,1756733447291,-480.0,0.00013698,2]
[382794103,1756733447301,-480.0,0.00013698,2]
[382794104,1756733447317,-480.0,0.00013698,2]
[382794105,1756733447327,-480.0,0.00013698,2]
[382794106,1756733447336,-480.0,0.00013698,2]
[382794107,1756733447347,-480.0,0.00013698,2]
[382794108,1756733447357,-480.0,0.00013698,2]
[382794109,1756733447366,-480.0,0.00013698,2]
[382794110,1756733447376,-480.0,0.00013698,2]
[382794111,1756733447388,-481.52753779,0.00013698,2]
[382794112,1756733447399,-480.0,0.00013698,2]
[382794113,1756733447408,-480.0,0.00013698,2]
[382794114,1756733447417,-482.15268508,0.00013698,2]
[382794115,1756733447427,-480.0,0.00013698,2]
[382794116,1756733447437,-480.0,0.00013698,2]
[382794117,1756733447446,-480.0,0.00013698,2]
[382794118,1756733447456,-480.0,0.00013698,2]
[382794119,1756733447466,-480.0,0.00013698,2]
[382794120,1756733447476,-480.0,0.00013698,2]
[382794121,1756733447486,-208.86055729,0.00013698,2]
[382794122,1756733447495,-480.0,0.00013698,2]
[382794123,1756733447505,-480.0,0.00013698,2]
[382794124,1756733447515,-480.0,0.00013698,2]
[382794125,1756733447524,-480.0,0.00013698,2]
[382794126,1756733447537,-480.0,0.00013698,2]
[382794127,1756733447547,-480.0,0.00013698,2]
[382794128,1756733447558,-480.0,0.00013698,2]
[382794129,1756733447568,-481.5968499,0.00013698,2]
[382794130,1756733447578,-480.0,0.00013698,2]
[382794131,1756733447588,-480.0,0.00013698,2]
[382794132,1756733447597,-480.0,0.00013698,2]
[382794133,1756733447607,-254.84624933,0.00013698,2]
[382794134,1756733447617,-480.0,0.00013698,2]
[382794135,1756733447627,-480.0,0.00013698,2]
[382794136,1756733447636,-362.3505503,0.00013698,2]
[382794137,1756733447646,-480.0,0.00013698,2]
[382794138,1756733447655,-500.58,0.00013698,2]
[382794139,1756733447665,-541.73,0.00013698,2]
[382794140,1756733447674,-480.0,0.00013698,2]
[382794141,1756733447684,-480.0,0.00013698,2]
[382794142,1756733447693,-480.0,0.00013698,2]
[382794143,1756733447703,-480.0,0.00013698,2]
[382794144,1756733447713,-515.9,0.00013698,2]
[382794145,1756733447722,-480.0,0.00013698,2]
[382794146,1756733447732,-480.0,0.00013698,2]
[382794147,1756733447741,-480.0,0.00013698,2]
[382794148,1756733447750,-480.0,0.00013698,2]
[382794149,1756733447760,-480.0,0.00013698,2]
[382794150,1756733447770,-729.36,0.00013698,2]
[382794151,1756733447781,-480.0,0.00013698,2]
[382794152,1756733447791,-480.0,0.00013698,2]
[382794153,1756733447802,-792.11,0.00013698,2]
[382794154,1756733447812,-812.69,0.00013698,2]
[382794155,1756733447822,-1300.58,0.00013698,2]
[382794156,1756733447832,-480.0,0.00013698,2]
[382794157,1756733447841,-480.0,0.00013698,2]
[382794158,1756733447851,-860.23,0.00013698,2]
[382794159,1756733447860,-462.05752525,0.00013698,2]
[382794160,1756733447870,-585.36,0.00013698,2]
[382794161,1756733447880,-480.0,0.00013698,2]
[382794162,1756733447889,-782.92,0.00013698,2]
[382794163,1756733447899,-480.0,0.00013698,2]
[382794164,1756733447908,-480.0,0.00013698,2]
[382794165,1756733447918,-640.72,0.00013698,2]
[382794166,1756733447927,-480.0,0.00013698,2]
[382794167,1756733447937,-480.0,0.00013698,2]
[382794168,1756733447946,-480.0,0.00013698,2]
[382794169,1756733447956,-480.0,0.00013698,2]
[382794170,1756733447966,-1171.24,0.00013698,2]
[382794171,1756733447976,-480.0,0.00013698,2]
[382794172,1756733447986,-480.0,0.00013698,2]
[382794173,1756733447996,-480.0,0.00013698,2]
[382794174,1756733448006,-480.0,0.00013698,2]
[382794175,1756733448016,-480.0,0.00013698,2]
[382794176,1756733448026,-480.0,0.00013698,2]
[382794177,1756733448038,-480.0,0.00013698,2]
[382794178,1756733448048,-543.78,0.00013698,2]
[382794179,1756733448058,-480.0,0.00013698,2]
[382794180,1756733448068,-480.0,0.00013698,2]
[382794181,1756733448079,-480.0,0.00013698,2]
[382794182,1756733448088,-1109.59,0.00013698,2]
[382794183,1756733448098,-480.0,0.00013698,2]
[382794184,1756733448107,-480.0,0.00013698,2]
[382794185,1756733448117,-480.0,0.00013698,2]
[382794186,1756733448126,-480.0,0.00013698,2]
[382794187,1756733448136,-748.3,0.00013698,2]
[382794188,1756733448146,-457.16364871,0.00013698,2]
[382794189,1756733448155,-480.0,0.00013698,2]
[382794190,1756733448165,-701.38,0.00013698,2]
[382794191,1756733448174,-480.0,0.00013698,2]
[382794192,1756733448183,-480.0,0.00013698,2]
[382794193,1756733448193,-943.19,0.00013698,2]
[382794194,1756733448203,-2977.67,0.00013698,2]
[382794195,1756733448213,-480.0,0.00013698,2]
[382794196,1756733448222,-480.0,0.00013698,2]
[382794197,1756733448231,-480.0,0.00013698,2]
[382794198,1756733448241,-480.0,0.00013698,2]
[382794199,1756733448251,-480.0,0.00013698,2]
[382794200,1756733448261,-211.81631622,0.00013698,2]
[382794201,1756733448314,-480.0,0.00013698,2]
[382794202,1756733448325,-480.0,0.00013698,2]
[382794203,1756733448335,-480.0,0.00013698,2]
[382794204,1756733448346,-480.0,0.00013698,2]
[382794205,1756733448355,-480.0,0.00013698,2]
[382794206,1756733448365,-480.0,0.00013698,2]
[382794207,1756733448380,-480.0,0.00013698,2]
[382794208,1756733448391,-480.0,0.00013698,2]
[382794209,1756733448402,-784.16,0.00013698,2]
[382794210,1756733448412,-480.0,0.00013698,2]
[382794211,1756733448422,-480.0,0.00013698,2]
[382794212,1756733448432,-481.63209188,0.00013698,2]
[382794213,1756733448442,-480.0,0.00013698,2]
[382794214,1756733448452,-461.84390019,0.00013698,2]
[382794215,1756733448461,-480.0,0.00013698,2]
[382794216,1756733448471,-595.96283006,0.00013698,2]
[382794217,1756733448481,-480.0,0.00013698,2]
[382794218,1756733448491,-525.92,0.00013698,2]
[382794219,1756733448501,-586.17,0.00013698,2]
[382794220,1756733448511,-1119.94,0.00013698,2]
[382794221,1756733448520,-500.0,0.00013698,2]
[382794222,1756733448530,-480.0,0.00013698,2]
[382794223,1756733448541,-480.0,0.00013698,2]
[382794224,1756733448551,-480.0,0.00013698,2]
[382794225,1756733448561,-480.0,0.00013698,2]
[382794226,1756733448571,-587.68,0.00013698,2]
[382794227,1756733448580,-482.02245497,0.00013698,2]
[382794228,1756733448591,-151.0,0.00013698,2]
[382794229,1756733448600,-151.0,0.00013698,2]
[382794230,1756733448610,-864.27,0.00013698,2]
[382794231,1756733448620,-480.0,0.00013698,2]
[382794232,1756733448629,-480.0,0.00013698,2]
[382794233,1756733448639,-909.54,0.00013698,2]
[382794234,1756733448649,-439.02496402,0.00013698,2]
[382794235,1756733448658,-480.0,0.00013698,2]
[382794236,1756733448668,-481.97077615,0.00013698,2]
[382794237,1756733448678,-480.0,0.00013698,2]
[382794238,1756733448688,-1034.65,0.00013698,2]
[382794239,1756733448698,-480.0,0.00013698,2]
[382794240,1756733448707,-480.0,0.00013698,2]
[382794241,1756733448717,-480.0,0.00013698,2]
[382794242,1756733448727,-480.0,0.00013698,2]
[382794243,1756733448738,-480.0,0.00013698,2]
[382794244,1756733448748,-480.0,0.00013698,2]
[382794245,1756733448758,-480.0,0.00013698,2]
[382794246,1756733448768,-240.80847407,0.00013698,2]
[382794247,1756733448778,-480.0,0.00013698,2]
[382794248,1756733448789,-651.23,0.00013698,2]
[382794249,1756733448799,-480.0,0.00013698,2]
[382794250,1756733448808,-480.0,0.00013698,2]
[382794251,1756733448818,-461.77366144,0.00013698,2]
[382794252,1756733448828,-480.0,0.00013698,2]
[382794253,1756733448838,-1920.53,0.00013698,2]
[382794254,1756733448847,-480.0,0.00013698,2]
[382794255,1756733448858,-480.0,0.00013698,2]
[382794256,1756733448868,-480.0,0.00013698,2]
[382794257,1756733448878,-480.0,0.00013698,2]
[382794258,1756733448888,-480.0,0.00013698,2]
[382794259,1756733448898,-934.58,0.00013698,2]
[382794260,1756733448908,-480.0,0.00013698,2]
[382794261,1756733448918,-480.0,0.00013698,2]
[382794262,1756733448928,-2468.82,0.00013698,2]
[382794263,1756733448938,-480.0,0.00013698,2]
[382794264,1756733448948,-480.0,0.00013698,2]
[382794265,1756733448957,-480.0,0.00013698,2]
[382794266,1756733448967,-482.01937465,0.00013698,2]
[382794267,1756733448976,-564.88,0.00013698,2]
[382794268,1756733448986,-480.0,0.00013698,2]
[382794269,1756733448996,-480.0,0.00013698,2]
[382794270,1756733449006,-532.43,0.00013698,2]
[382794271,1756733449015,-676.69,0.00013698,2]
[382794272,1756733449025,-1331.41,0.00013698,2]
[382794273,1756733449037,-480.0,0.00013698,2]
[382794274,1756733449047,-480.0,0.00013698,2]
[382794275,1756733449056,-480.0,0.00013698,2]
[382794276,1756733449066,-482.94364366,0.00013698,2]
[382794277,1756733449075,-480.0,0.00013698,2]
[382794278,1756733449086,-480.0,0.00013698,2]
[382794279,1756733449095,-885.1,0.00013698,2]
[382794280,1756733449105,-480.0,0.00013698,2]
[382794281,1756733449115,-480.0,0.00013698,2]
[382794282,1756733449125,-480.0,0.00013698,2]
[382794283,1756733449135,-480.0,0.00013698,2]
[382794284,1756733449145,-3307.87,0.00013698,2]
[382794285,1756733449155,-645.04,0.00013698,2]
[382794286,1756733449165,-832.67,0.00013698,2]
[382794287,1756733449174,-480.0,0.00013698,2]
[382794288,1756733449184,-762.49,0.00013698,2]
[382794289,1756733449193,-480.0,0.00013698,2]
[382794290,1756733449203,-481.54685957,0.00013698,2]
[382794291,1756733449212,-480.0,0.00013698,2]
[382794292,1756733449222,-480.0,0.00013698,2]
[382794293,1756733449232,-521.16,0.00013698,2]
[382794294,1756733449241,-914.58,0.00013698,2]
[382794295,1756733449251,-685.42,0.00013698,2]
[382794296,1756733449260,-2245.25,0.00013698,2]
[382794297,1756733449270,-1041.13,0.00013698,2]
[382794298,1756733449279,-480.0,0.00013698,2]
[382794299,1756733449291,-480.89,0.00013698,2]
[382794300,1756733449300,-480.0,0.00013698,2]
[382794301,1756733449314,-480.0,0.00013698,2]
[382794302,1756733449324,-480.0,0.00013698,2]
[382794303,1756733449334,-624.89,0.00013698,2]
[382794304,1756733449344,-480.0,0.00013698,2]
[382794305,1756733449354,-689.4,0.00013698,2]
[382794306,1756733449363,-480.0,0.00013698,2]
[382794307,1756733449372,-480.0,0.00013698,2]
[382794308,1756733449382,-480.0,0.00013698,2]
[382794309,1756733449392,-480.0,0.00013698,2]
[382794310,1756733449401,-480.0,0.00013698,2]
[382794311,1756733449411,-481.68766409,0.00013698,2]
[382794312,1756733449420,-480.0,0.00013698,2]
[382794313,1756733449430,-480.0,0.00013698,2]
[382794314,1756733449439,-921.16,0.00013698,2]
[382794315,1756733449448,-480.0,0.00013698,2]
[382794316,1756733449457,-1002.4,0.00013698,2]
[382794317,1756733449466,-490.63,0.00013698,2]
[382794318,1756733449476,-450.98509741,0.00013698,2]
[382794319,1756733449502,-29.01490259,0.00013698,2]
[382794320,1756733449512,-6699.57,0.00013698,2]
[382794321,1756733449521,-724.12,0.00013698,2]
[382794322,1756733449533,-480.0,0.00013698,2]
[382794323,1756733449543,-2503.11,0.00013698,2]
[382794324,1756733449553,-480.0,0.00013698,2]
[382794325,1756733449562,-576.78,0.00013698,2]
[382794326,1756733449572,-480.0,0.00013698,2]
[382794327,1756733449581,-526.35,0.00013698,2]
[382794328,1756733449590,-480.0,0.00013698,2]
[382794329,1756733449600,-482.14397125,0.00013698,2]
[382794330,1756733449609,-506.26754925,0.00013698,2]
[382794331,1756733449618,-450.05712781,0.00013698,2]
[382794332,1756733449628,-480.0,0.00013698,2]
[382794333,1756733449637,-480.0,0.00013698,2]
[382794334,1756733449646,-483.39713193,0.00013698,2]
[382794335,1756733449655,-480.0,0.00013698,2]
[382794336,1756733449664,-480.0,0.00013698,2]
[382794337,1756733449674,-480.0,0.00013698,2]
[382794338,1756733449683,-480.0,0.00013698,2]
[382794339,1756733449693,-480.0,0.00013698,2]
[382794340,1756733449702,-1118.87,0.00013698,2]
[382794341,1756733449711,-484.68311449,0.00013698,2]
[382794342,1756733449721,-1020.68,0.00013698,2]
[382794343,1756733449730,-480.0,0.00013698,2]
[382794344,1756733449740,-480.0,0.00013698,2]
[382794345,1756733449750,-1988.92,0.00013698,2]
[382794346,1756733449760,-480.0,0.00013698,2]
[382794347,1756733449769,-480.0,0.00013698,2]
[382794348,1756733449779,-480.0,0.00013698,2]
[382794349,1756733449791,-480.0,0.00013698,2]
[382794350,1756733449800,-480.0,0.00013698,2]
[382794351,1756733449809,-480.0,0.00013698,2]
[382794352,1756733449818,-480.0,0.00013698,2]
[382794353,1756733449827,-544.83,0.00013698,2]
[382794354,1756733449836,-692.89,0.00013698,2]
[382794355,1756733449845,-480.0,0.00013698,2]
[382794356,1756733449854,-480.0,0.00013698,2]
[382794357,1756733449864,-6277.35,0.00013698,2]
[382794358,1756733449873,-480.0,0.00013698,2]
[382794359,1756733449882,-480.0,0.00013698,2]
[382794360,1756733449892,-480.0,0.00013698,2]
[382794361,1756733449901,-480.0,0.00013698,2]
[382794362,1756733449911,-480.0,0.00013698,2]
[382794363,1756733449920,-806.26,0.00013698,2]
[382794364,1756733449929,-480.0,0.00013698,2]
[382794365,1756733449939,-615.13860858,0.00013698,2]
[382794366,1756733449948,-271.99173298,0.00013698,2]
[382794367,1756733470130,167.72910765,0.00012933,2]
[382794368,1756733470199,666.0,0.000127,2]
[382794369,1756733493614,167.72910765,0.00012933,2]
[382794372,1756733507981,3945.64663169,0.00012973,2]
[382794373,1756733508004,10000.01,0.00012973,2]
[382794374,1756733508027,10000.01,0.00012973,2]
[382794375,1756733508052,10000.01,0.00012973,2]
[382794376,1756733508074,10000.01,0.00012973,2]
[382794377,1756733508098,10000.01,0.00012973,2]
[382794378,1756733508121,10000.01,0.00012973,2]
[382794379,1756733508144,10000.01,0.00012973,2]
[382794380,1756733508166,10000.01,0.00012973,2]
[382794381,1756733508187,10000.01,0.00012973,2]
[382794382,1756733508423,11025.25830999,0.00012973,2]
[382794383,1756733517313,167.72910765,0.00012933,2]
[382794384,1756733526213,167.72910765,0.00012933,2]
[382794385,1756733543497,167.72910765,0.00012933,2]
[382794386,1756733551935,167.72910765,0.00012933,2]
[382794387,1756733599773,1814.0,0.00027397,120]
[382794388,1756733601783,9329.0935694,0.00012699,2]
[382794389,1756733601810,670.9064306,0.00012699,2]
[382794391,1756733631573,4006.05115723,0.00030506,120]
[382794393,1756733670266,9329.1035694,0.00012973,2]
[382794394,1756733670290,10000.01,0.00012973,2]
[382794395,1756733670314,10000.01,0.00012973,2]
[382794396,1756733670338,10000.01,0.00012973,2]
[382794397,1756733670365,10000.01,0.00012973,2]
[382794398,1756733670390,10000.01,0.00012973,2]
[382794399,1756733670414,10000.01,0.00012973,2]
[382794400,1756733670439,10000.01,0.00012973,2]
[382794401,1756733670462,10000.01,0.00012973,2]
[382794402,1756733670491,670.9064306,0.00012973,2]
[382794403,1756733707178,151.0,0.00012872,2]
[382794404,1756733708145,156.587,0.00012872,2]
[382794407,1756733779738,613.39856,0.00012928,2]
[382794408,1756733802828,613.39856,0.00012928,2]
[382794410,1756733826427,613.39856,0.00012928,2]
[382794411,1756733850012,613.39856,0.00012928,2]
[382794412,1756733873359,613.39856,0.00012928,2]
[382794413,1756733883057,613.39856,0.00012928,2]
[382794415,1756733892848,1000.0,0.00012632,2]
[382794416,1756733899814,613.39856,0.00012928,2]
[382794417,1756733924152,613.39856,0.00012928,2]
[382794418,1756733948086,613.39856,0.00012928,2]
[382794419,1756733965440,613.39856,0.00012928,2]
[382794420,1756733992230,216.59407,0.00012667,2]
[382794421,1756733993358,216.59407,0.00012795,2]
[382794422,1756733993780,210.38904937,0.00012924,2]
[382794426,1756734122146,158.91512951,0.00012986,2]
[382794427,1756734157694,5108.1510933,0.0001287,2]
[382794429,1756734174928,4089.36658782,0.0001287,2]
[382794430,1756734174952,1018.78450548,0.0001287,2]
[382794431,1756734182514,158.91512951,0.00012986,2]
[382794432,1756734183247,4720.10826603,0.0001287,2]
[382794434,1756734199582,4102.20209898,0.0001287,2]
[382794435,1756734199605,1005.94899432,0.0001287,2]
[382794437,1756734224083,5108.1510933,0.0001287,2]
[382794439,1756734244358,180.70105,6.317e-05,2]
[382794440,1756734244574,180.70105,8.423e-05,2]
[382794441,1756734244787,180.70105,0.00010528,2]
[382794442,1756734244985,180.70105,0.00012634,2]
[382794444,1756734248104,3163.10571238,0.0001287,2]
[382794445,1756734248128,1945.04538092,0.0001287,2]
[382794446,1756734271717,1369.62618543,0.0001287,2]
[382794447,1756734323236,194.9300286,0.00012639,2]
[382794448,1756734328759,4258.95226466,0.0001287,2]
[382794449,1756734378722,200.9682333,0.00012547,2]
[382794453,1756734550024,-352.74671136,0.00015095,5]
[382794454,1756734550220,-942.90951632,0.00017,7]
[382794455,1756734550483,-1699.34377232,0.00018,7]
[382794475,1756734567707,666.0,0.00012548,2]
[382794571,1756734638038,-1191.06,0.00013,2]
[382794575,1756734638095,-724.88990049,0.00013,2]
[382794577,1756734638108,-500.0,0.00013,2]
[382795386,1756734646360,-2.29934,0.00013,2]
[382795903,1756734651967,1364.48790709,0.00012535,2]
[382795906,1756734651993,10000.01,0.00012535,2]
[382795909,1756734652016,10000.01,0.00012535,2]
[382795914,1756734652047,13783.40835491,0.00012535,2]
[382797449,1756734669213,2689.90185281,0.0001287,2]
[382798257,1756734677772,10000.0,0.0001256,2]
[382799621,1756734692740,400.0,0.000128,2]
[382799682,1756734693328,866.19916657,0.0001287,2]
[382805705,1756734762093,500.0,0.000118,2]
[382806153,1756734767268,2864.10251399,0.000129,2]
[382808755,1756734795031,2538.7186,0.00025,30]
[382812188,1756735083431,300.0,0.00012999,2]
[382812189,1756735143954,300.0,0.00012999,2]
[382812191,1756735158351,158.71984996,0.000129,2]
[382812192,1756735195873,311.65031622,0.0001261,2]
[382812193,1756735202561,300.0,0.00012999,2]
[382812194,1756735202713,300.0,0.00012999,2]
[382812195,1756735203061,300.0,0.00012999,2]
[382812196,1756735203214,300.0,0.00012999,2]
[382812197,1756735203261,300.0,0.00012999,2]
[382812198,1756735204379,1200.0,0.00012999,2]
[382812199,1756735215008,2347.87260389,0.00012996,2]
[382812200,1756735262582,300.0,0.00012999,2]
[382812201,1756735323187,217.66471594,0.00012999,2]
[382812202,1756735323212,82.33528406,0.00012999,2]
[382812203,1756735326678,1200.0,0.00012999,2]
[382812209,1756735383440,300.0,0.00012999,2]
[382812210,1756735443101,300.0,0.00012999,2]
[382812212,1756735502598,300.0,0.00012999,2]
[382812213,1756735502939,300.0,0.00012999,2]
[382812214,1756735503092,300.0,0.00012999,2]
[382812215,1756735503731,300.0,0.00012999,2]
[382812216,1756735504109,1200.0,0.00012999,2]
[382812217,1756735511836,666.0,0.00012554,2]
[382812218,1756735563320,300.0,0.00012999,2]
[382812219,1756735590439,4751.67471594,0.00012554,2]
[382812220,1756735590462,5248.32528406,0.00012554,2]
[382812221,1756735622500,300.0,0.00012999,2]
[382812222,1756735682985,300.0,0.00012999,2]
[382812223,1756735734124,887.20859311,0.00012362,2]
[382812224,1756735736269,3264.47612283,0.00012362,2]
[382812225,1756735736292,280.80941525,0.00012362,2]
[382812226,1756735742489,300.0,0.00012999,2]
[382812228,1756735787461,9419.20058475,0.00012591,2]
[382812229,1756735787485,5432.93315325,0.00012591,2]
[382812230,1756735802994,300.0,0.00012999,2]
[382812231,1756735803214,300.0,0.00012999,2]
[382812232,1756735803852,300.0,0.00012999,2]
[382812233,1756735804002,1200.0,0.00012999,2]
[382812298,1756735832536,-2689.90185281,0.00013,2]
[382812300,1756735832545,-400.0,0.00013,2]
[382812302,1756735832555,-4226.0,0.00013,2]
[382812304,1756735832564,-1079.29668378,0.00013,2]
[382812306,1756735832574,-158.71984995,0.00013126,2]
[382812307,1756735832583,-158.71984995,0.00013352,2]
[382812309,1756735832592,-168.0,0.00013444,2]
[382812311,1756735832602,-1000.0,0.000135,2]
[382812313,1756735832612,-168.0,0.00013575,2]
[382812315,1756735832621,-158.71984995,0.00013578,2]
[382812317,1756735832631,-168.0,0.00013585,2]
[382812319,1756735832640,-8900.55158479,0.0001359,2]
[382812321,1756735832650,-5693.56097896,0.00013598,2]
[382812323,1756735832660,-266.58,0.00013642,2]
[382812325,1756735832671,-194.91,0.00013642,2]
[382812327,1756735832681,-194.91,0.00013642,2]